bitfinex-derivatives/quotes_SOLF0:USTF0_20250819
["timestamp","ask_amount","ask_price","bid_price","bid_amount"]
[1755592816053,4.66457991,179.65,179.59,3.16]
[1755592816253,377.39,179.68,179.59,3.16]
[1755592816451,4.66190848,179.67,179.59,3.16]
[1755592816653,4.66190848,179.66,179.59,3.16]
[1755592816854,4.66257932,179.65,179.59,3.16]
[1755592817060,377.39,179.68,179.59,3.16]
[1755592817262,4.66029842,179.67,179.59,3.16]
[1755592817455,4.66029842,179.66,179.59,3.16]
[1755592817656,377.39,179.68,179.59,3.16]
[1755592817657,4.66029842,179.65,179.59,3.16]
[1755592817854,377.39,179.68,179.59,3.16]
[1755592818055,4.66133813,179.67,179.59,3.16]
[1755592818352,4.66133813,179.66,179.59,3.16]
[1755592818562,3.11,179.66,179.59,3.16]
[1755592819860,3.11,179.69,179.61,3.70008065]
[1755592820063,4.6598664,179.68,179.62,3.16]
[1755592820258,3.11,179.69,179.62,3.16]
[1755592821560,3.11,179.69,179.61,3.70008065]
[1755592821561,139.31,179.72,179.64,3.70008065]
[1755592821763,3.11,179.72,179.65,3.16]
[1755592828765,2.98,179.75,179.68,3.15]
[1755592831983,2.98,179.75,179.7,3.70008065]
[1755592832270,2.98,179.75,179.72,3.15]
[1755592832663,2.98,179.81,179.71,3.15]
[1755592832867,2.98,179.81,179.74,3.15]
[1755592837866,136.08,179.84,179.66,62.0]
[1755592837867,139.06,179.84,179.77,3.15]
[1755592838680,2.98,179.84,179.77,3.15]
[1755592838873,2.98,179.84,179.8,3.15]
[1755592839676,2.98,179.87,179.76,3.15]
[1755592839880,2.98,179.87,179.76,6.85008065]
[1755592843781,2.98,179.87,179.73,3.70008065]
[1755592843983,2.98,179.85,179.74,3.15]
[1755592844176,2.98,179.83,179.74,3.15]
[1755592844378,2.98,179.83,179.77,3.15]
[1755592851092,2.98,179.83,179.74,3.15]
[1755592851290,3.70008065,179.83,179.71,3.15]
[1755592851490,2.98,179.82,179.71,3.15]
[1755592851790,2.98,179.8,179.71,3.15]
[1755592852088,2.98,179.78,179.71,3.15]
[1755592852884,3.04,179.81,179.71,3.15]
[1755592855188,3.04,179.79,179.71,3.15]
[1755592860093,4.59838188,179.78,179.71,3.15]
[1755592860294,3.04,179.79,179.71,3.15]
[1755592860488,3.04,179.77,179.7,3.70008065]
[1755592860896,3.04,179.77,179.71,3.03]
[1755592861285,3.04,179.77,179.7,3.70008065]
[1755592861489,3.04,179.77,179.68,3.03]
[1755592862990,3.04,179.75,179.68,3.03]
[1755592863195,3.04,179.73,179.65,3.03]
[1755592864193,4.60692809,179.72,179.65,3.03]
[1755592864394,3.04,179.73,179.65,3.03]
[1755592864995,4.60714778,179.72,179.65,3.03]
[1755592865197,3.04,179.73,179.65,3.03]
[1755592865392,4.60957068,179.72,179.65,3.03]
[1755592865597,3.04,179.73,179.65,3.03]
[1755592865799,4.60942927,179.72,179.65,3.03]
[1755592866098,3.04,179.73,179.65,3.03]
[1755592866296,4.61154146,179.72,179.65,3.03]
[1755592866494,3.04,179.73,179.65,3.03]
[1755592866794,4.61131266,179.72,179.65,3.03]
[1755592866992,3.70008065,179.8,179.68,3.03]
[1755592867192,4.61154581,179.79,179.7,3.70008065]
[1755592867399,3.04,179.77,179.71,3.03]
[1755592868495,3.04,179.77,179.7,3.70008065]
[1755592872602,4.62450889,179.76,179.7,3.70008065]
[1755592872805,3.04,179.75,179.68,3.03]
[1755592878606,3.04,179.75,179.68,5.563]
[1755592878810,3.04,179.75,179.69,3.03]
[1755592881618,3.04,179.78,179.7,3.70008065]
[1755592881815,3.04,179.78,179.71,3.03]
[1755592884613,4.62841395,179.77,179.68,8.38610136]
[1755592884821,7.8283716,179.76,179.68,3.70008065]
[1755592885021,3.2,179.76,179.68,3.70008065]
[1755592891321,3.2,179.76,179.71,3.70008065]
[1755592891727,3.2,179.76,179.72,2.91]
[1755592892032,3.2,179.76,179.73,2.91]
[1755592893029,3.2,179.75,179.71,6.61008065]
[1755592893229,3.2,179.75,179.72,2.91]
[1755592894527,9.91865749,179.82,179.71,3.70008065]
[1755592894735,3.2,179.8,179.68,8.37446007]
[1755592894928,3.2,179.78,179.68,8.37446007]
[1755592895234,3.2,179.76,179.68,11.28446007]
[1755592895423,4.63626145,179.75,179.68,11.28446007]
[1755592895627,3.2,179.74,179.68,7.58437942]
[1755592896831,3.2,179.74,179.7,2.91]
[1755592897038,3.2,179.74,179.71,2.91]
[1755592897938,3.2,179.8,179.69,3.70008065]
[1755592898139,3.2,179.78,179.68,7.58437942]
[1755592898338,3.2,179.76,179.68,7.58437942]
[1755592898633,3.2,179.74,179.68,7.58437942]
[1755592901539,4.63949076,179.73,179.67,4.67437942]
[1755592901840,3.2,179.71,179.63,4.67437942]
[1755592902039,4.63949076,179.7,179.64,2.91]
[1755592902246,4.63949076,179.69,179.63,7.58437942]
[1755592902543,3.2,179.71,179.63,7.58437942]
[1755592902730,4.62671362,179.7,179.63,7.58437942]
[1755592902935,4.62671362,179.69,179.63,7.58437942]
[1755592903142,3.2,179.71,179.63,7.58437942]
[1755592903342,4.62681646,179.7,179.63,7.58437942]
[1755592903542,3.2,179.71,179.63,7.58437942]
[1755592903842,4.6251652,179.7,179.63,7.58437942]
[1755592904043,3.2,179.71,179.63,7.58437942]
[1755592904234,4.62543881,179.7,179.63,7.58437942]
[1755592904435,4.71344204,179.69,179.63,2.91]
[1755592904631,3.2,179.71,179.63,2.91]
[1755592904835,4.71344203,179.7,179.63,2.91]
[1755592905049,4.71344203,179.69,179.63,2.91]
[1755592905342,3.2,179.71,179.63,6.61008065]
[1755592905535,4.71228562,179.7,179.63,6.61008065]
[1755592905737,3.2,179.71,179.63,6.61008065]
[1755592905937,4.71256197,179.7,179.63,6.61008065]
[1755592906138,3.2,179.71,179.64,2.91]
[1755592908937,4.71078359,179.7,179.64,2.91]
[1755592909145,7.91036113,179.69,179.63,3.70008065]
[1755592909342,3.2,179.69,179.63,3.70008065]
[1755592910049,3.2,179.69,179.62,2.91]
[1755592910441,3.2,179.69,179.62,7.58437942]
[1755592910649,3.2,179.72,179.63,2.91]
[1755592910846,4.70973849,179.71,179.63,2.91]
[1755592911047,3.2,179.72,179.63,2.91]
[1755592911249,3.2,179.72,179.65,2.91]
[1755592914749,3.2,179.72,179.65,7.58437942]
[1755592915051,3.2,179.72,179.66,3.03]
[1755592917454,3.14,179.77,179.66,3.03]
[1755592917750,3.14,179.75,179.66,3.03]
[1755592918054,4.71096601,179.74,179.66,3.03]
[1755592918242,4.71096601,179.74,179.67,3.70008065]
[1755592919754,3.14,179.75,179.67,3.70008065]
[1755592919954,4.71148638,179.74,179.67,3.70008065]
[1755592920153,3.14,179.75,179.67,3.70008065]
[1755592920452,4.71148638,179.74,179.67,3.70008065]
[1755592920755,3.14,179.73,179.67,3.70008065]
[1755592923156,3.14,179.73,179.69,3.03]
[1755592923364,3.14,179.73,179.68,3.03]
[1755592923551,3.14,179.73,179.67,3.70008065]
[1755592923751,3.14,179.73,179.69,3.03]
[1755592924052,3.14,179.73,179.67,3.70008065]
[1755592924053,3.70008065,179.81,179.71,3.03]
[1755592924261,3.14,179.75,179.71,3.03]
[1755592926956,3.70008065,179.81,179.71,3.03]
[1755592927161,3.14,179.75,179.71,3.03]
[1755592927558,3.14,179.8,179.71,3.03]
[1755592927756,3.70008065,179.81,179.71,3.03]
[1755592927757,7.43582024,179.79,179.71,3.03]
[1755592927961,3.14,179.78,179.71,3.03]
[1755592928159,4.71298587,179.77,179.71,3.03]
[1755592928356,3.14,179.75,179.71,3.03]
[1755592928558,3.14,179.74,179.71,3.03]
[1755592933365,3.70008065,179.81,179.67,13.93776007]
[1755592933669,3.14,179.75,179.72,3.03]
[1755592933862,3.70008065,179.81,179.72,3.03]
[1755592934062,3.14,179.74,179.72,3.03]
[1755592934666,3.14,179.74,179.67,8.37446007]
[1755592934867,3.14,179.74,179.71,3.03]
[1755592938472,3.14,179.74,179.72,3.03]
[1755592939963,3.14,179.76,179.72,3.03]
[1755592940167,6.84008065,179.81,179.72,3.03]
[1755592940467,3.14,179.79,179.72,3.03]
[1755592940663,3.14,179.77,179.72,3.03]
[1755592940869,3.14,179.74,179.72,3.03]
[1755592941774,3.14,179.74,179.67,8.37446007]
[1755592942265,3.14,179.74,179.68,3.02]
[1755592947573,3.14,179.74,179.67,8.37446007]
[1755592947777,3.14,179.74,179.68,3.02]
[1755592951774,3.14,179.74,179.69,3.02]
[1755592952276,3.02,179.8,179.7,3.70008065]
[1755592952475,3.02,179.78,179.71,3.02]
[1755592952668,4.72175917,179.77,179.71,3.02]
[1755592954469,4.72175917,179.76,179.7,6.72008065]
[1755592955474,4.72517088,179.75,179.7,6.72008065]
[1755592955679,3.02,179.77,179.71,3.02]
[1755592955974,4.72517088,179.76,179.71,3.02]
[1755592956168,3.02,179.77,179.71,3.02]
[1755592956365,4.72540298,179.76,179.71,10.23627942]
[1755592956563,3.02,179.77,179.73,3.02]
[1755592956771,7.74546707,179.76,179.72,3.02]
[1755592956970,3.02,179.76,179.73,3.02]
[1755592957170,3.02,179.76,179.7,8.37446007]
[1755592957474,3.02,179.79,179.74,3.02]
[1755592957664,9.91865749,179.83,179.75,3.02]
[1755592957665,7.74592847,179.78,179.75,3.02]
[1755592957863,3.02,179.81,179.74,3.02]
[1755592958069,4.72639025,179.8,179.74,3.02]
[1755592958265,4.72639025,179.79,179.73,3.70008065]
[1755592958465,3.02,179.81,179.77,3.02]
[1755592958670,4.72666093,179.8,179.78,3.02]
[1755592958871,3.02,179.85,179.79,3.02]
[1755592959073,4.72667288,179.84,179.81,3.02]
[1755592959270,122.19786089,179.87,179.77,7.69437942]
[1755592959271,7.74667288,179.83,179.77,7.69437942]
[1755592959577,7.74667288,179.83,179.77,3.02]
[1755592959578,3.02,179.83,179.77,3.02]
[1755592961086,3.02,179.83,179.76,3.70008065]
[1755592962681,3.02,179.83,179.75,4.67437942]
[1755592962876,3.02,179.83,179.75,8.37446007]
[1755592963283,3.02,179.83,179.76,3.02]
[1755592966679,3.02,179.83,179.76,8.5805]
[1755592966876,3.02,179.83,179.77,3.02]
[1755592967080,3.02,179.83,179.79,3.02]
[1755592969482,3.02,179.86,179.8,3.02]
[1755592970675,3.02,179.86,179.82,3.02]
[1755592971181,3.02,179.85,179.82,3.02]
[1755592971783,3.02,179.84,179.81,3.70008065]
[1755592972085,3.02,179.86,179.81,3.70008065]
[1755592972381,122.19786089,179.87,179.81,6.72008065]
[1755592972584,2.89,179.86,179.81,6.72008065]
[1755592973083,122.19786089,179.87,179.81,6.72008065]
[1755592973288,2.89,179.85,179.82,3.02]
[1755592974283,2.89,179.86,179.83,3.02]
[1755592977389,2.89,179.85,179.83,3.02]
[1755592978796,2.89,179.85,179.81,3.70008065]
[1755592979091,2.89,179.93,179.81,3.70008065]
[1755592979287,2.89,179.91,179.81,3.70008065]
[1755592979487,4.67775344,179.9,179.81,3.70008065]
[1755592979692,2.89,179.89,179.81,3.70008065]
[1755592980388,2.89,179.87,179.79,3.02]
[1755592981993,4.67654262,179.86,179.76,3.70008065]
[1755592982192,2.89,179.85,179.77,3.02]
[1755592983896,2.89,179.85,179.78,3.02]
[1755592984396,2.89,179.9,179.8,3.02]
[1755592986196,4.67668234,179.89,179.8,3.02]
[1755592986395,2.89,179.87,179.8,3.02]
[1755592994703,2.89,179.93,179.83,3.02]
[1755592994903,4.68653761,179.92,179.83,3.02]
[1755592995102,7.57653761,179.91,179.83,3.02]
[1755592995294,121.72251007,179.95,179.83,3.02]
[1755592995498,7.57795961,179.94,179.86,3.02]
[1755592995695,4.68795961,179.93,179.86,3.02]
[1755592999404,4.68795961,179.93,179.88,3.70008065]
[1755592999707,4.68795961,179.93,179.9,3.02]
[1755593000393,7.57795961,179.93,179.9,3.02]
[1755593000594,2.89,179.93,179.9,3.02]
[1755593001111,121.72251007,179.95,179.88,3.70008065]
[1755593001405,7.58378418,179.94,179.88,6.72008065]
[1755593001616,7.58378418,179.93,179.89,3.02]
[1755593001802,2.89,179.93,179.9,3.02]
[1755593002907,3.01,179.94,179.88,3.70008065]
[1755593003102,3.01,179.92,179.88,6.88008065]
[1755593003308,3.01,179.91,179.88,6.88008065]
[1755593003804,3.01,179.91,179.84,5.5581]
[1755593003805,3.01,179.94,179.85,3.70008065]
[1755593004111,4.69669775,179.93,179.86,3.18]
[1755593004302,4.69669775,179.92,179.86,3.18]
[1755593004502,3.01,179.94,179.86,3.18]
[1755593004702,4.69609253,179.93,179.86,3.18]
[1755593004908,3.01,179.94,179.86,3.18]
[1755593005098,4.69609253,179.93,179.86,3.18]
[1755593005309,3.01,179.94,179.86,3.18]
[1755593005515,4.69546742,179.93,179.86,3.18]
[1755593005810,3.01,179.94,179.86,3.18]
[1755593006011,4.69546742,179.93,179.86,3.18]
[1755593006206,3.01,179.94,179.86,3.18]
[1755593006512,4.69493575,179.93,179.86,5.5575]
[1755593006711,3.01,179.94,179.87,3.18]
[1755593007411,3.01,179.94,179.89,3.18]
[1755593007608,3.01,179.94,179.9,3.18]
[1755593007813,3.01,179.94,179.91,3.18]
[1755593008109,3.01,179.98,179.92,3.18]
[1755593008311,3.01,179.96,179.88,3.70008065]
[1755593008516,3.01,179.96,179.85,3.18]
[1755593008517,4.69373114,179.95,179.85,3.18]
[1755593008737,3.01,179.94,179.85,3.18]
[1755593011814,3.01,179.94,179.83,4.67437942]
[1755593012117,3.01,179.92,179.82,3.18]
[1755593012317,3.01,179.9,179.82,3.18]
[1755593015113,3.01,179.9,179.85,3.18]
[1755593015313,3.01,179.93,179.86,3.18]
[1755593015517,4.6944744,179.92,179.86,3.18]
[1755593015717,3.01,179.93,179.86,3.18]
[1755593015921,4.69617231,179.92,179.86,3.18]
[1755593016114,3.01,179.93,179.86,3.18]
[1755593016313,4.69495124,179.92,179.86,3.18]
[1755593016518,3.01,179.93,179.86,3.18]
[1755593016719,4.69497957,179.92,179.86,3.18]
[1755593016921,3.01,179.93,179.86,3.18]
[1755593020113,3.01,180.0,179.88,3.18]
[1755593020418,3.01,179.98,179.88,3.18]
[1755593020610,3.01,179.96,179.88,3.18]
[1755593020813,3.01,179.94,179.88,3.18]
[1755593022924,3.01,179.94,179.84,3.70008065]
[1755593023129,3.01,179.94,179.85,3.18]
[1755593025325,3.01,179.94,179.88,3.18]
[1755593026827,3.01,180.0,179.88,3.18]
[1755593027028,7.33700404,179.99,179.88,3.18]
[1755593027232,10.34700404,179.98,179.88,3.18]
[1755593027438,4.60177599,179.97,179.88,5.5569]
[1755593027729,4.60177599,179.96,179.9,3.70008065]
[1755593027930,4.60177599,179.95,179.9,3.70008065]
[1755593028124,3.01,179.98,179.92,3.18]
[1755593028524,4.60210065,179.97,179.92,3.18]
[1755593028831,3.01,179.95,179.92,3.18]
[1755593029332,3.01,180.0,179.87,3.70008065]
[1755593029630,3.70008065,179.98,179.87,3.70008065]
[1755593029825,4.60317792,179.97,179.87,3.70008065]
[1755593030130,3.01,179.95,179.87,3.70008065]
[1755593030327,4.60245276,179.94,179.84,3.70008065]
[1755593030528,3.01,179.92,179.82,3.18]
[1755593030725,3.01,179.92,179.85,3.18]
[1755593031827,3.01,179.92,179.86,3.18]
[1755593032027,3.01,179.92,179.88,3.18]
[1755593032231,3.01,179.95,179.9,3.70008065]
[1755593032426,3.02,179.98,179.92,3.19]
[1755593032630,3.70008065,180.03,179.92,3.19]
[1755593032631,3.02,179.96,179.92,3.19]
[1755593033134,3.02,179.95,179.92,3.19]
[1755593036236,3.02,180.02,179.91,3.19]
[1755593036436,3.02,180.0,179.91,3.19]
[1755593036634,4.60600131,179.99,179.91,3.19]
[1755593036832,4.60600131,179.98,179.91,3.19]
[1755593037145,4.60600131,179.97,179.91,3.19]
[1755593037435,3.02,180.0,179.91,3.19]
[1755593037638,4.60713898,179.99,179.91,3.19]
[1755593037837,4.60713898,179.98,179.91,3.19]
[1755593038034,4.60713898,179.97,179.91,3.19]
[1755593038339,7.62864221,179.96,179.92,3.19]
[1755593038540,3.02,179.96,179.93,3.19]
[1755593040240,6.21857684,180.02,179.9,3.70008065]
[1755593040432,3.02,179.95,179.91,3.19]
[1755593040635,3.02,179.99,179.88,3.19]
[1755593040835,3.02,179.97,179.88,3.19]
[1755593041036,3.02,179.95,179.88,3.19]
[1755593041242,4.60920607,179.94,179.88,3.19]
[1755593041444,3.02,179.93,179.88,3.19]
[1755593041639,9.91865749,180.0,179.88,3.19]
[1755593041840,7.3489584,179.99,179.88,3.19]
[1755593042036,3.02,179.97,179.88,3.19]
[1755593042240,4.60925124,179.96,179.88,3.19]
[1755593042437,3.02,179.94,179.88,3.19]
[1755593042637,3.02,179.94,179.85,3.19]
[1755593042839,3.02,179.92,179.84,3.70008065]
[1755593043040,4.60860829,179.91,179.82,3.19]
[1755593043244,3.02,179.9,179.82,3.19]
[1755593044151,4.60743191,179.89,179.79,3.19]
[1755593044448,3.02,179.87,179.79,3.19]
[1755593045247,3.02,179.87,179.78,9.90270067]
[1755593045248,4.60615742,179.86,179.78,3.70008065]
[1755593045451,3.02,179.87,179.77,85.57427564]
[1755593045654,3.02,179.85,179.77,85.57427564]
[1755593046845,3.02,179.85,179.78,3.19]
[1755593047248,3.02,179.85,179.78,6.89008065]
[1755593047544,3.02,179.85,179.79,3.19]
[1755593050445,3.02,179.9,179.81,3.70008065]
[1755593050651,3.02,179.9,179.82,3.19]
[1755593054056,4.63961537,179.89,179.82,3.19]
[1755593054257,3.02,179.9,179.82,3.19]
[1755593054458,4.63928169,179.89,179.82,3.19]
[1755593054660,3.02,179.9,179.81,3.70008065]
[1755593054957,3.02,179.88,179.81,3.70008065]
[1755593056651,3.02,179.88,179.81,6.89008065]
[1755593057550,3.02,179.93,179.81,6.89008065]
[1755593057753,3.02,179.91,179.81,6.89008065]
[1755593057952,3.02,179.89,179.81,6.89008065]
[1755593058759,3.02,179.93,179.84,6.89008065]
[1755593059058,3.02,179.91,179.84,6.89008065]
[1755593059252,4.63781421,179.9,179.84,6.89008065]
[1755593059452,3.02,179.91,179.84,6.89008065]
[1755593064260,3.02,179.91,179.84,3.70008065]
[1755593064466,3.02,179.91,179.82,3.11]
[1755593064753,4.63752568,179.9,179.82,3.11]
[1755593064958,3.2,179.89,179.82,3.11]
[1755593068650,9.91865749,179.97,179.84,3.70008065]
[1755593068850,7.35404329,179.96,179.85,3.11]
[1755593069161,3.2,179.94,179.85,3.11]
[1755593069358,4.63763732,179.93,179.85,3.11]
[1755593069556,7.83763732,179.92,179.85,3.11]
[1755593069757,4.63763732,179.91,179.85,3.11]
[1755593073362,3.2,179.92,179.85,3.11]
[1755593073561,4.63824212,179.91,179.85,3.11]
[1755593073758,9.91865749,179.97,179.85,3.11]
[1755593073958,7.35556111,179.96,179.85,3.11]
[1755593074165,3.2,179.88,179.85,3.11]
[1755593077663,3.2,179.86,179.82,3.11]
[1755593077857,3.2,179.86,179.83,3.11]
[1755593078058,3.2,179.93,179.78,6.81008065]
[1755593078362,3.2,179.91,179.78,6.81008065]
[1755593078562,3.2,179.89,179.78,6.81008065]
[1755593078862,3.2,179.87,179.78,6.81008065]
[1755593079460,3.2,179.87,179.79,3.11]
[1755593081863,3.2,179.85,179.76,3.11]
[1755593082260,3.2,179.85,179.76,7.77215272]
[1755593083060,3.2,179.83,179.74,7.77215272]
[1755593084065,4.65689044,179.82,179.74,3.11]
[1755593084266,3.2,179.87,179.74,3.11]
[1755593084466,7.37686557,179.86,179.74,3.11]
[1755593084663,3.2,179.84,179.74,3.11]
[1755593084871,4.65787994,179.83,179.74,3.11]
[1755593085166,7.85787994,179.82,179.74,3.11]
[1755593085358,3.2,179.82,179.74,3.11]
[1755593086968,3.2,179.82,179.75,3.70008065]
[1755593087164,3.2,179.82,179.76,3.11]
[1755593100570,3.2,179.82,179.72,6.80008065]
[1755593100771,4.64823014,179.81,179.72,3.1]
[1755593100968,2.91,179.79,179.7,3.1]
[1755593110972,4.64024056,179.78,179.67,3.1]
[1755593111177,2.91,179.77,179.67,3.1]
[1755593124485,3.04,179.75,179.67,3.1]
[1755593129785,7.68757692,179.74,179.67,3.1]
[1755593129992,3.04,179.73,179.67,3.1]
[1755593130591,3.04,179.73,179.64,3.07]
[1755593140095,3.04,179.73,179.6,9.90270067]
[1755593140096,3.04,179.71,179.61,7.73649454]
[1755593140598,3.04,179.71,179.62,3.07]
[1755593142299,3.04,179.69,179.62,3.07]
[1755593143593,3.04,179.73,179.62,3.07]
[1755593143798,3.04,179.71,179.62,3.07]
[1755593143999,4.65110705,179.7,179.62,3.07]
[1755593144204,3.04,179.71,179.62,3.07]
[1755593144500,4.65041566,179.7,179.64,3.07]
[1755593144695,3.04,179.71,179.64,3.07]
[1755593144892,4.65201622,179.7,179.64,3.07]
[1755593145198,3.04,179.74,179.64,3.07]
[1755593145395,4.65202514,179.73,179.64,3.07]
[1755593145700,4.65202514,179.72,179.67,3.07]
[1755593145899,3.04,179.76,179.67,3.07]
[1755593146203,4.65237876,179.75,179.67,3.07]
[1755593146401,4.65295233,179.74,179.67,3.07]
[1755593146704,3.04,179.76,179.67,3.07]
[1755593146897,4.65295835,179.75,179.67,3.07]
[1755593147097,4.65295835,179.74,179.67,3.07]
[1755593147308,3.04,179.76,179.67,3.07]
[1755593147603,4.65324131,179.75,179.67,3.07]
[1755593147803,4.65324131,179.74,179.67,3.07]
[1755593148007,3.04,179.76,179.67,3.07]
[1755593148198,4.65114459,179.75,179.67,3.07]
[1755593148399,4.65114459,179.74,179.67,3.07]
[1755593148599,3.04,179.76,179.67,3.07]
[1755593148805,4.65182351,179.75,179.69,3.70008065]
[1755593149100,4.65182638,179.74,179.73,3.07]
[1755593150203,4.65182638,179.74,179.7,3.07]
[1755593150406,3.04,179.76,179.7,3.07]
[1755593150701,4.65358157,179.75,179.72,3.07]
[1755593151005,3.04,179.79,179.73,3.07]
[1755593151208,7.69427,179.78,179.74,3.07]
[1755593151406,7.69427,179.77,179.74,3.07]
[1755593151709,3.04,179.77,179.74,3.07]
[1755593158413,123.62133667,179.82,179.72,6.89008065]
[1755593158614,7.55420426,179.81,179.73,3.19]
[1755593158814,4.65420426,179.8,179.73,3.19]
[1755593162016,2.9,179.81,179.73,3.19]
[1755593162217,4.65181577,179.8,179.73,3.19]
[1755593162412,2.9,179.79,179.73,3.19]
[1755593167314,2.9,179.84,179.73,8.7516]
[1755593167518,2.9,179.82,179.74,3.19]
[1755593167719,2.9,179.8,179.74,3.19]
[1755593177425,2.9,179.8,179.72,3.70008065]
[1755593177625,2.9,179.8,179.73,3.19]
[1755593181221,2.9,179.84,179.73,3.19]
[1755593181527,2.9,179.82,179.73,3.19]
[1755593181728,4.62787596,179.81,179.76,3.19]
[1755593181924,2.9,179.81,179.78,3.19]
[1755593185326,519.25865749,179.87,179.78,3.19]
[1755593185522,3.04,179.8,179.78,3.19]
[1755593189237,3.04,179.86,179.76,3.07]
[1755593189434,7.67441386,179.85,179.76,3.07]
[1755593189632,7.67441386,179.85,179.78,3.70008065]
[1755593189633,4.63441386,179.84,179.78,3.70008065]
[1755593190038,3.04,179.84,179.82,3.07]
[1755593196041,135.6,179.88,179.82,3.07]
[1755593196235,4.63758755,179.87,179.79,3.07]
[1755593196437,4.63758755,179.86,179.79,3.07]
[1755593196739,3.04,179.87,179.79,3.07]
[1755593196939,4.63802573,179.86,179.79,3.07]
[1755593197139,3.04,179.87,179.79,5.5598]
[1755593197332,3.04,179.87,179.8,3.07]
[1755593199339,6.21857684,179.98,179.85,3.07]
[1755593199532,10.4026417,179.97,179.88,3.07]
[1755593199730,4.63953615,179.96,179.88,3.07]
[1755593199935,3.04,179.97,179.89,3.07]
[1755593200237,4.64120191,179.96,179.89,3.07]
[1755593200441,3.04,179.97,179.89,3.07]
[1755593200641,4.63660883,179.96,179.89,3.07]
[1755593200944,4.63681315,179.95,179.89,3.07]
[1755593201136,3.04,179.97,179.89,3.07]
[1755593201337,4.63294462,179.96,179.89,3.07]
[1755593201629,3.04,179.97,179.89,3.07]
[1755593202444,3.04,179.97,179.89,8.6267]
[1755593202638,3.04,179.97,179.9,3.07]
[1755593203438,3.04,179.97,179.91,5.5561]
[1755593203639,3.04,180.01,179.92,3.07]
[1755593203937,3.04,179.99,179.92,3.07]
[1755593210055,3.04,179.99,179.9,3.70008065]
[1755593210240,3.04,179.99,179.89,3.07]
[1755593211347,3.04,179.99,179.89,8.6268]
[1755593212246,3.04,179.99,179.9,9.25648065]
[1755593212456,3.04,179.99,179.91,2.98]
[1755593213352,3.04,179.99,179.92,5.5558]
[1755593213551,3.04,179.99,179.93,2.98]
[1755593225062,139.16008065,180.04,179.94,2.98]
[1755593225063,2.99,180.03,179.94,2.98]
[1755593225258,16.69,180.12,179.84,11.1168]
[1755593225259,2.99,180.12,179.97,2.98]
[1755593225471,2.99,180.1,180.01,2.98]
[1755593227466,2.99,180.1,180.01,8.5331]
[1755593227667,2.99,180.1,180.04,2.98]
[1755593229564,2.99,180.1,180.01,6.68008065]
[1755593231571,2.99,180.1,180.02,2.98]
[1755593231783,2.99,180.14,180.07,6.68008065]
[1755593233075,2.99,180.12,180.04,3.70008065]
[1755593233377,4.55614601,180.11,180.04,3.70008065]